Cogmind - Beta 10.2 @@@ ROGUE MODE // 2021.06.11 @ 18:17:24 Player: Enzo Result: Self-destructed Performance ------------- Evolutions (5) 2500 Regions Visited (19) 3800 Robots Destroyed (230) 1150 Value Destroyed (9111) 9111 Prototype IDs (23) 460 Alien Tech Used (0) 0 Bonus (5249) 5249 TOTAL SCORE: 22270 Bonus ------- High Alert Combat Kills 933 Follower Combat Kills 474 Entered Garrisons 1200 Used RIF Installer 3000 Aligned with FarCom 300 Friendly Fire -658 Cogmind --------- Core Integrity 794/1000 Matter 17/300 Energy 191/200 System Corruption 0% Temperature Cool (0) Movement Hovering (56) Location -5/Factory Parts ------- > --- POWER (1) -------- Cold Fusion Reactor > --- PROPULSION (3) --- Combat Airjet Linear Gravjet > --- UTILITY (10) ----- Large Storage Unit Advanced Signal Interpreter Advanced Terrain Scanner Advanced Terrain Scan Processor Relay Coupler [NC] (29) Relay Coupler [Grunt] (29) Relay Coupler [Sentry] (24) Relay Coupler [Specialist] (27) > --- WEAPON (3) ------- (None) > --- INVENTORY (10) --- Light Nuclear Core Relay Coupler [NC] (31) Relay Coupler [Grunt] (29) Relay Coupler [Hunter] (23) Skeleton Box Peak State ------------ > --- POWER ------------ F-cell Engine > --- PROPULSION ------- Cooled Aerolev Unit Combat Airjet Combat Airjet > --- UTILITY ---------- Large Storage Unit Advanced Signal Interpreter Advanced Terrain Scan Processor Relay Coupler [NC] Relay Coupler [Swarmer] Relay Coupler [Grunt] Relay Coupler [Sentry] Relay Coupler [Specialist] > --- WEAPON ----------- Cooled Plasma Cannon Magnetic Acceleration Cannon Remote Datajack > --- INVENTORY -------- Combat Airjet Combat Airjet Advanced Terrain Scanner Relay Coupler [NC] Relay Coupler [Grunt] Relay Coupler [Duelist] Skeleton Box Magnetic Acceleration Cannon Long-range Missile Launcher Remote Datajack [Rating: 65] Favorites ----------- Power Micro Nuclear Core Engine F-cell Engine Power Core Micro Nuclear Core Reactor Cold Fusion Reactor Propulsion Combat Airjet Treads Improved Medium Treads Leg Armored Leg Wheel Wheel Hover Unit Combat Airjet Utility Large Storage Unit Device Advanced Terrain Scanner Storage Large Storage Unit Processor Advanced Signal Interpreter Hackware Relay Coupler [Grunt] Protection Improved Propulsion Shielding Weapon Remote Datajack Energy Gun Improved EM Shotgun Energy Cannon Cooled Particle Cannon Ballistic Gun Shotgun Ballistic Cannon Magnetic Acceleration Cannon Launcher Mini Grenade Launcher Special Weapon Remote Datajack Special Melee Weapon Datajack Build | -11 -10 -10 -9 -9 -9 -8 -8 -8 -8 -8 -7 -7 -7 -7 -6 -6 -6 -6 -5 ------- Run | Scr Mat Min Mat Min Exi Min Mat Gar Mat Gar Fac Gar Fac Gar Fac Gar Fac Gar Fac Slots Evolved 10 | . . . 2 . . . 2 . . . 2 . . . 2 . . . 2 Power . | . . . . . . . . . . . . . . . . . . . . Propulsion 1 | . . . . . . . 1 . . . . . . . . . . . . Utility 8 | . . . 2 . . . 1 . . . 1 . . . 2 . . . 2 Weapon 1 | . . . . . . . . . . . 1 . . . . . . . . Parts Attached 250 | 8 6 2 52 1 4 . 20 15 16 17 12 9 10 11 31 7 10 12 7 Power 18 | 1 1 . 4 . . . . . 2 . 1 1 . 1 2 . 1 2 2 Engine 10 | 1 1 . 4 . . . . . . . . . . . 2 . 1 1 . Core 7 | . . . . . . . . . 2 . 1 1 . 1 . . . 1 1 Reactor 1 | . . . . . . . . . . . . . . . . . . . 1 Propulsion 50 | 3 1 2 10 . 2 . 4 . 2 1 4 . 1 3 12 . 2 1 2 Treads 1 | . . . . . . . . . . . . . . . . . 1 . . Leg 9 | . . 1 . . 1 . . . . . . . . 2 5 . . . . Wheel 15 | 3 1 1 7 . . . . . . . . . . . 3 . . . . Hover 25 | . . . 3 . 1 . 4 . 2 1 4 . 1 1 4 . 1 1 2 Flight . | . . . . . . . . . . . . . . . . . . . . Utility 58 | 2 2 . 10 . 2 . 5 2 3 3 2 3 3 1 8 6 1 3 2 Device 20 | . . . 5 . 2 . 1 1 1 . 1 . 1 . 6 . . . 2 Storage 9 | 2 2 . 2 . . . 1 . . . . . 1 . 1 . . . . Processor 6 | . . . 2 . . . 3 . . . . 1 . . . . . . . Hackware 19 | . . . . . . . . . 1 3 . 2 1 1 1 6 1 3 . Protection 4 | . . . 1 . . . . 1 1 . 1 . . . . . . . . Artifact . | . . . . . . . . . . . . . . . . . . . . Weapon 124 | 2 2 . 28 1 . . 11 13 9 13 5 5 6 6 9 1 6 6 1 Energy Gun 17 | . . . 10 . . . 2 4 1 . . . . . . . . . . Energy Cannon 38 | . . . 5 1 . . 4 . 6 6 1 2 3 3 2 . 3 2 . Ballistic Gun 13 | 2 2 . 3 . . . 3 2 1 . . . . . . . . . . Ballistic Cannon 12 | . . . . . . . . . . . . . 2 . 5 . 3 1 1 Launcher 29 | . . . 10 . . . 2 4 1 3 . 3 . 3 1 . . 2 . Special Weapon 6 | . . . . . . . . . . . 3 . 1 . 1 1 . . . Impact Weapon . | . . . . . . . . . . . . . . . . . . . . Slashing Weapon . | . . . . . . . . . . . . . . . . . . . . Piercing Weapon . | . . . . . . . . . . . . . . . . . . . . Special Melee Weapon 9 | . . . . . . . . 3 . 4 1 . . . . . . 1 . Unidentified Prototypes 17 | . . . 1 . 2 . 6 . 2 . . . . . 4 . 1 . 1 Parts Lost 41 | . . 1 5 . . . 5 1 3 1 . 1 . 5 2 1 . 13 3 Power 4 | . . . 1 . . . . . . . . . . . 1 . . 2 . Propulsion 14 | . . 1 3 . . . 2 . . 1 . . . 3 . . . 3 1 Utility 7 | . . . . . . . 1 1 1 . . 1 . . 1 . . 1 1 Weapon 16 | . . . 1 . . . 2 . 2 . . . . 2 . 1 . 7 1 Highest Loss Streak 5 | . . 1 3 . . . 5 1 2 1 . 1 . 2 1 1 . 5 3 Average Slot Usage (%) 95 | . 100 98 97 100 100 100 85 90 97 99 95 98 99 90 96 98 99 85 70 Engine 5 | . 14 14 10 11 11 11 9 9 5 . . . . . 5 6 6 4 . Core 2 | . . . . . . . . . 3 9 7 7 7 7 . . . . . Leg 2 | . . . . . . . . . . . . . . 10 8 . . . . Wheel 4 | . 28 26 12 . . . . . . . . . . . 5 . . . . Hover 14 | . . . 8 22 21 22 25 27 26 26 21 23 23 4 3 20 20 18 9 Device 5 | . . . 17 11 11 11 4 . 9 . 3 7 . . 6 3 . . 8 Storage 9 | . 28 28 11 11 11 11 9 9 9 9 7 7 7 7 6 6 6 6 5 Processor 12 | . . . 11 11 11 11 11 18 18 9 7 12 15 15 13 13 13 13 11 Hackware 15 | . . . . . . . . . . 25 23 16 21 23 26 28 33 27 23 Protection 1 | . . . 2 11 11 11 9 8 7 . . . . . . . . . . Energy Gun 2 | . . . 9 11 11 11 5 7 4 . . . . . . . . . . Energy Cannon 7 | . . . 6 11 11 11 7 . 11 11 15 13 11 5 5 6 5 2 . Ballistic Gun 3 | . 28 28 4 . . . 4 4 1 . . . . . . . . . . Ballistic Cannon 2 | . . . . . . . . . . . . . 2 5 5 6 5 4 3 Special Weapon 3 | . . . . . . . . . . . 2 7 7 7 6 5 6 2 . Naked Turns . | . . . . . . . . . . . . . . . . . . . . Heaviest Build 54 | 15 27 27 51 28 28 28 37 33 40 37 40 40 40 39 54 48 48 48 39 Greatest Support 66 | 26 20 26 30 30 30 30 44 44 44 44 44 44 44 33 59 59 59 66 44 Greatest Overweight (x) 12 | . 1 2 5 . 9 . 1 . 10 . 1 . 1 12 3 . 1 1 1 Average Overweight (x) . | . . 1 . . . . . . . . . . . 1 . . . . . Largest Inventory Capacity 12 | 8 12 12 12 8 8 8 10 10 10 10 10 10 12 10 10 10 10 10 10 Average Capacity 9 | 6 8 12 10 8 8 8 8 10 10 10 10 10 10 10 10 10 10 10 10 Most Carried 12 | 4 8 12 11 8 8 8 9 10 10 10 10 10 10 10 10 10 10 10 6 Average Carried 9 | . 6 10 8 8 8 8 7 9 9 9 9 9 9 9 9 8 9 8 4 Final Capacity 12 | 8 12 12 8 8 8 8 10 10 10 10 10 10 10 10 10 10 10 10 10 Final Carried 12 | 4 8 12 8 8 8 8 9 10 10 10 10 10 10 10 9 10 10 7 5 Class Distribution -------------------- 29% | Bothacker-Mutant 20% | Mutant 17% | Bothacker-Scout 9% | Botlord-Mutant 5% | Bothacker-Skirmisher 5% | Botlord-Skirmisher 4% | Scout 3% | Scavenger-Skirmisher Dominant Class ---------------- Mutant | -10/Materials Mutant | -10/Mines Mutant | -9/Materials Mutant | -9/Mines Mutant | -9/Exiles Scout | -8/Mines Mutant | -8/Materials Mutant | -8/Garrison Bothacker-Mutant | -8/Materials Bothacker-Mutant | -8/Garrison Bothacker-Mutant | -7/Factory Bothacker-Scout | -7/Garrison Bothacker-Mutant | -7/Factory Bothacker-Mutant | -7/Garrison Bothacker-Skirmisher | -6/Factory Botlord-Mutant | -6/Garrison Botlord-Mutant | -6/Factory Botlord-Mutant | -6/Garrison Scout | -5/Factory Resources | -11 -10 -10 -9 -9 -9 -8 -8 -8 -8 -8 -7 -7 -7 -7 -6 -6 -6 -6 -5 ----------- Run | Scr Mat Min Mat Min Exi Min Mat Gar Mat Gar Fac Gar Fac Gar Fac Gar Fac Gar Fac Matter Collected 5330 | 333 187 249 962 . . . 325 216 577 255 113 171 186 412 559 255 266 222 42 Remotely . | . . . . . . . . . . . . . . . . . . . . Salvage Created 6878 | 103 272 170 1236 . . . 371 417 775 464 106 518 196 381 708 363 390 364 44 Parts 440 | 7 19 11 98 . . . 26 24 65 28 9 28 16 27 33 10 18 19 2 Haulers Intercepted 12 | . . . 4 . . . 2 . 4 . . . . . 2 . . . . Recyclers Shooed 4 | . . 1 . . . . . . . . . . . . 1 . 2 . . Parts Field Recycled . | . . . . . . . . . . . . . . . . . . . . Retrieved Matter . | . . . . . . . . . . . . . . . . . . . . Parts Self-Destructed . | . . . . . . . . . . . . . . . . . . . . Prevented . | . . . . . . . . . . . . . . . . . . . . Kills | -11 -10 -10 -9 -9 -9 -8 -8 -8 -8 -8 -7 -7 -7 -7 -6 -6 -6 -6 -5 ------- Run | Scr Mat Min Mat Min Exi Min Mat Gar Mat Gar Fac Gar Fac Gar Fac Gar Fac Gar Fac Combat Hostiles Destroyed 174 | . 9 5 32 . . . 7 18 13 11 2 13 3 24 6 6 9 13 3 Guns 31 | . 9 5 11 . . . 2 4 . . . . . . . . . . . Cannons 67 | . . . 2 . . . 1 . 9 5 2 9 3 7 6 6 8 7 2 AOE 74 | . . . 19 . . . 4 14 4 5 . 4 . 17 . . 1 6 . Classes Destroyed 16 | 2 4 2 6 . . . . . 1 . 1 . . . . . . . . Worker 16 | . . . 8 . . . 1 . 4 . . . 1 . 2 . . . . Builder 6 | . . 1 1 . . . 2 . 1 . . . 1 . . . . . . Tunneler 4 | 2 . . 1 . . . . . 1 . . . . . . . . . . Hauler 12 | . . . 4 . . . 2 . 4 . . . . . 2 . . . . Recycler 5 | 1 . 1 . . . . . . . . . . . . 2 . 1 . . Mechanic 1 | . . . 1 . . . . . . . . . . . . . . . . Operator 3 | . 1 . 2 . . . . . . . . . . . . . . . . Watcher 11 | . 1 . 5 . . . . . 3 . . . 1 . 1 . . . . Swarmer 61 | . 5 . 11 . . . . 7 4 3 . 7 . 16 . . 2 3 3 Grunt 75 | . 4 2 14 . . . 6 9 5 5 . 3 . 7 3 3 4 10 . Duelist 4 | . . . 2 . . . . 1 . . . . . . . 1 . . . Protector 1 | . . . 1 . . . . . . . . . . . . . . . . Sentry 19 | . . . 4 . . . 1 1 3 3 1 2 . 1 . 2 1 . . Hunter 1 | . . . . . . . . . 1 . . . . . . . . . . Programmer 11 | . . . . . . . . . . . 1 1 3 . 3 1 2 . . Assembled 3 | . . 3 . . . . . . . . . . . . . . . . . Best Kill Streak 11 | 3 3 2 6 . . . 9 7 8 5 1 3 1 11 3 2 4 5 3 Combat Bots Only 11 | . 3 2 4 . . . 6 7 5 5 1 3 1 11 3 2 3 5 3 Max Kills in Single Turn 4 | 1 1 1 4 . . . 3 4 2 3 1 2 1 3 1 1 2 2 1 Gunslinging . | . . . . . . . . . . . . . . . . . . . . Exploded 4 | . . . 3 . . . 2 4 1 3 . 2 . 3 . . 1 2 . Melee . | . . . . . . . . . . . . . . . . . . . . Uniques/NPCs Destroyed . | . . . . . . . . . . . . . . . . . . . . Combat | -11 -10 -10 -9 -9 -9 -8 -8 -8 -8 -8 -7 -7 -7 -7 -6 -6 -6 -6 -5 -------- Run | Scr Mat Min Mat Min Exi Min Mat Gar Mat Gar Fac Gar Fac Gar Fac Gar Fac Gar Fac Damage Taken 7659 | . 321 219 795 . . . 541 324 820 164 77 381 235 653 428 235 270 1583 613 Core 1599 | . 78 72 195 . . . 102 52 235 22 . 72 47 137 31 8 28 314 206 Absorbed by Shields 29 | . . . . . . . . 12 . . . . . 9 . . . 8 . Core Remaining (%) 55 | 100 . 40 . . . 51 . . . 25 . . . 63 . . . 55 . Volleys Fired 597 | 9 32 20 100 . . . 24 29 55 21 17 49 36 30 41 44 30 51 9 Largest 2 | 2 2 2 2 . . . 2 2 2 2 2 2 2 2 2 2 2 2 1 Hottest 158 | 40 46 46 120 . . . 120 75 131 120 60 123 99 117 158 158 143 130 53 Shots Fired 919 | 18 64 40 151 . . . 32 41 87 31 30 77 52 42 76 64 49 56 9 Gun 282 | 18 64 40 111 . . . 11 25 13 . . . . . . . . . . Cannon 490 | . . . 12 . . . 14 . 67 20 30 60 49 27 74 51 41 36 9 Launcher 109 | . . . 28 . . . 7 16 7 11 . 12 . 11 . . . 17 . Special 38 | . . . . . . . . . . . . 5 3 4 2 13 8 3 . Kinetic 319 | 18 64 40 48 . . . 7 9 2 . . . 15 9 37 20 21 20 9 Thermal 362 | . . . 40 . . . 14 . 55 20 30 60 32 8 37 31 20 15 . Explosive 88 | . . . 28 . . . 7 16 7 2 . . . 11 . . . 17 . Electromagnetic 112 | . . . 35 . . . 4 16 23 9 . 12 2 10 . . . 1 . Robot Hit Streak 18 | 5 5 8 14 . . . 11 6 10 4 7 13 9 7 18 11 8 9 3 Robot Miss Streak 9 | 3 5 9 4 . . . 2 3 6 1 1 3 3 3 3 2 5 2 2 Penetration Max 1 | . . . . . . . . . . . . . 1 . . . . . . Secondary Targets 1 | . 1 . . . . . . . . . . . . . . . . . . Max Gunslinging Chain 1 | . 1 . . . . . . . . . . . . . . . . . . Shots Hit Robots 549 | 10 34 23 108 . . . 14 20 53 18 21 49 29 26 45 37 27 30 5 Core Hits 346 | 4 15 16 77 . . . 21 32 38 14 3 21 7 34 18 9 14 21 2 Critical Hits 6 | . . . . . . . . . . . . 1 2 1 1 1 . . . Critical Kills . | . . . . . . . . . . . . . . . . . . . . Critical Parts Destroyed 6 | . . . . . . . . . . . . 1 2 1 1 1 . . . Melee Attacks 11 | . . . . . . . . . . 4 6 . . . . . . 1 . Impact . | . . . . . . . . . . . . . . . . . . . . Slashing . | . . . . . . . . . . . . . . . . . . . . Piercing . | . . . . . . . . . . . . . . . . . . . . Sneak Attacks 2 | . . . . . . . . . . . 2 . . . . . . . . Combat Hostiles . | . . . . . . . . . . . . . . . . . . . . Follow-up Attacks . | . . . . . . . . . . . . . . . . . . . . Damage Inflicted 21405 | 121 405 350 4058 . . . 1089 1581 1868 701 444 1321 1038 2432 1604 1048 1350 1817 178 Guns 2835 | 121 405 350 1470 . . . 135 224 130 . . . . . . . . . . Cannons 9097 | . . . 181 . . . 100 . 1160 241 444 1160 1038 473 1604 1048 877 605 166 Explosions 9461 | . . . 2407 . . . 854 1357 578 460 . 161 . 1959 . . 473 1212 . Melee . | . . . . . . . . . . . . . . . . . . . . Ramming 12 | . . . . . . . . . . . . . . . . . . . 12 Kinetic 4172 | 121 405 350 658 . . . 70 45 15 . . . 200 235 659 332 566 350 166 Thermal 7507 | . . . 509 . . . 349 217 922 278 444 1183 801 136 945 716 784 223 . Explosive 7919 | . . . 2407 . . . 605 1140 528 68 . . . 1959 . . . 1212 . Electromagnetic 1795 | . . . 484 . . . 65 179 403 355 . 138 37 102 . . . 32 . Impact . | . . . . . . . . . . . . . . . . . . . . Slashing . | . . . . . . . . . . . . . . . . . . . . Piercing . | . . . . . . . . . . . . . . . . . . . . Highest Corruption 7 | . . . 4 4 4 4 7 7 7 7 . . 5 5 1 1 2 2 . Average Corruption 3 | . . . 4 4 4 4 7 7 7 7 . . 3 5 1 1 1 2 . Corruption Purged . | . . . . . . . . . . . . . . . . . . . . Effects 195 | . . . 22 . 3 4 12 23 37 20 . . 16 31 11 5 5 6 . Message Errors 48 | . . . 6 . . 2 1 5 6 4 . . 6 8 6 1 2 1 . Matter Fused 41 | . . . 4 . 2 . 1 7 10 7 . . 5 5 . . . . . Heat Flow Errors 23 | . . . 2 . . 2 2 1 5 4 . . 1 3 . . . 3 . Energy Discharges 25 | . . . 7 . . . 2 3 . . . . 1 8 2 1 1 . . Parts Rejected 3 | . . . 1 . . . . . 1 . . . 1 . . . . . . Data Loss (minor) 19 | . . . 1 . 1 . . 2 4 1 . . 1 2 2 2 1 2 . Data Loss (major) 4 | . . . . . . . 1 . 1 . . . . 2 . . . . . Misfires 6 | . . . . . . . 1 1 1 2 . . . 1 . . . . . Targeting Errors 20 | . . . . . . . 2 3 8 2 . . . 2 1 1 1 . . Weapon Failures 6 | . . . 1 . . . 2 1 1 . . . 1 . . . . . . Overload Shots 21 | . . . . . . . . . . 1 . 1 9 . 5 5 . . . Overflow Damage 1055 | . . . 116 . . . 5 20 32 . . 44 120 170 198 35 187 121 7 Projectiles 491 | . . . 21 . . . . . 18 . . 44 120 . 198 35 46 2 7 Explosions 564 | . . . 95 . . . 5 20 14 . . . . 170 . . 141 119 . Melee . | . . . . . . . . . . . . . . . . . . . . Knockbacks 16 | . . . . . . . . . . . . . . 1 2 2 5 2 4 Impact . | . . . . . . . . . . . . . . . . . . . . Kinetic 15 | . . . . . . . . . . . . . . 1 2 2 5 2 3 Secondary 1 | . . . . . . . . . . . . . . . . . . . 1 Self-Inflicted Damage 409 | . . . 108 . . . 20 72 158 . . 11 . 35 . . . . 5 Shots 13 | . . . 3 . . . 1 2 4 . . 2 . 1 . . . . . Rammed 2 | . . . . . . . . . . . . . . . . . . . 2 Targets Rammed 2 | . . . . . . . . . . . . . . . . . . . 2 Kicked . | . . . . . . . . . . . . . . . . . . . . Crushed . | . . . . . . . . . . . . . . . . . . . . Highest Temperature 370 | . 2 21 370 . . 266 195 207 228 273 1 66 252 273 198 210 302 291 . Average Temperature 73 | . 2 11 99 . . 117 54 30 54 90 1 22 53 54 75 64 110 97 . Received Heat Transfer 1453 | . 75 103 282 . . . 81 117 189 54 6 42 . 78 27 75 54 243 27 Effects 3 | . . . 3 . . . . . . . . . . . . . . . . Shutdowns 1 | . . . 1 . . . . . . . . . . . . . . . . Energy Bleed 2 | . . . 2 . . . . . . . . . . . . . . . . Siege Activations . | . . . . . . . . . . . . . . . . . . . . Robots Corrupted 1 | . . . . . . . . . . 1 . . . . . . . . . Combat Hostiles 1 | . . . . . . . . . . 1 . . . . . . . . . Parts Fried 4 | . . . 2 . . . . . 2 . . . . . . . . . . Impact Corruptions 1 | . . . . . . . . . . . . . . . . . . . 1 Robots Melted . | . . . . . . . . . . . . . . . . . . . . Combat Hostiles . | . . . . . . . . . . . . . . . . . . . . Parts Melted 8 | . . . . . . . . . 2 . . 1 1 . 3 . 1 . . Heat Transferred 9561 | . . . 814 . . . 348 200 1345 399 592 1576 805 185 1247 900 800 350 . Parts Sabotaged . | . . . . . . . . . . . . . . . . . . . . Parts Stolen . | . . . . . . . . . . . . . . . . . . . . Parts Stripped . | . . . . . . . . . . . . . . . . . . . . Power Chain Reactions 7 | . . . . . . . 1 2 1 2 . 1 . . . . . . . Missiles Intercepted . | . . . . . . . . . . . . . . . . . . . . Alert | -11 -10 -10 -9 -9 -9 -8 -8 -8 -8 -8 -7 -7 -7 -7 -6 -6 -6 -6 -5 ------- Run | Scr Mat Min Mat Min Exi Min Mat Gar Mat Gar Fac Gar Fac Gar Fac Gar Fac Gar Fac Peak Influence 896 | 15 242 139 861 335 . . 374 879 570 802 489 658 479 896 547 352 483 778 455 Initial 470 | . 9 53 . 335 . . . 243 428 364 420 186 345 272 470 25 184 338 403 Average 349 | 4 125 69 426 335 . . 201 617 331 620 403 542 192 700 172 160 285 618 408 Maximum Alert Level 3 | . 1 . 3 1 . . 1 3 2 3 2 2 2 3 2 1 2 3 2 Low Security (%) 35 | 100 88 100 24 . . 100 47 . 19 . . 7 62 . 66 58 10 . . Level 1 23 | . 11 . 24 100 . . 52 12 43 2 39 10 29 10 17 41 68 11 . Level 2 28 | . . . 33 . . . . 33 36 74 60 82 8 11 15 . 20 44 100 Level 3 13 | . . . 17 . . . . 54 . 22 . . . 78 . . . 43 . Level 4 . | . . . . . . . . . . . . . . . . . . . . Level 5 . | . . . . . . . . . . . . . . . . . . . . High Security . | . . . . . . . . . . . . . . . . . . . . Max Security . | . . . . . . . . . . . . . . . . . . . . Squads Dispatched 34 | . 1 . 8 . . . 2 . 4 . 3 . 4 . 7 . 5 . . Investigation 6 | . . . 1 . . . 1 . 2 . . . . . 2 . . . . Extermination 11 | . . . . . . . . . . . 1 . 4 . 4 . 2 . . Reinforcement 15 | . 1 . 6 . . . 1 . 2 . 2 . . . 1 . 2 . . Assault 1 | . . . 1 . . . . . . . . . . . . . . . . Garrison 1 | . . . . . . . . . . . . . . . . . 1 . . Intercept . | . . . . . . . . . . . . . . . . . . . . Construction Impeded 4 | . . . 2 . . . 1 . 1 . . . . . . . . . . Haulers Reinforced 2 | . . . . . . . . . . . . . . . . . 2 . . Stealth | -11 -10 -10 -9 -9 -9 -8 -8 -8 -8 -8 -7 -7 -7 -7 -6 -6 -6 -6 -5 --------- Run | Scr Mat Min Mat Min Exi Min Mat Gar Mat Gar Fac Gar Fac Gar Fac Gar Fac Gar Fac Distress Signals 13 | . 4 . 5 . . . 1 . 1 . . . . . 1 . 1 . . Communications Jammed . | . . . . . . . . . . . . . . . . . . . . Distress Signals . | . . . . . . . . . . . . . . . . . . . . Times Spotted 336 | . 19 9 69 . . . 11 21 23 18 13 20 11 29 24 21 13 30 5 Peak Tracking Total 9 | . 5 2 5 . . . 5 5 4 7 3 5 2 9 4 4 4 6 5 Tactical Retreats 35 | . 2 . 8 . . . 1 1 5 3 1 2 . 1 4 1 . 6 . Traps | -11 -10 -10 -9 -9 -9 -8 -8 -8 -8 -8 -7 -7 -7 -7 -6 -6 -6 -6 -5 ------- Run | Scr Mat Min Mat Min Exi Min Mat Gar Mat Gar Fac Gar Fac Gar Fac Gar Fac Gar Fac Traps Triggered 44 | . . . 1 . . . . 13 . 1 2 12 1 2 1 2 1 8 . Indirectly 5 | . . . . . . . . . . . . 5 . . . . . . . Trap Hack Attempts 35 | . . . . . . . . 28 . . . . . . . . . 7 . Triggered . | . . . . . . . . . . . . . . . . . . . . Disarmed . | . . . . . . . . . . . . . . . . . . . . Reprogrammed 5 | . . . . . . . . 4 . . . . . . . . . 1 . Reused 1 | . . . . . . . . . . . . . . . . . . 1 . Traps Extracted . | . . . . . . . . . . . . . . . . . . . . Installed . | . . . . . . . . . . . . . . . . . . . . Triggered 1 | . . . . . . . . . . . . . . . . . . 1 . Exploded 1 | . . . . . 1 . . . . . . . . . . . . . . Machines | -11 -10 -10 -9 -9 -9 -8 -8 -8 -8 -8 -7 -7 -7 -7 -6 -6 -6 -6 -5 ---------- Run | Scr Mat Min Mat Min Exi Min Mat Gar Mat Gar Fac Gar Fac Gar Fac Gar Fac Gar Fac Machines Disabled 44 | . 1 . 4 . . . 4 2 5 2 2 1 1 2 1 5 10 4 . Max in Single Turn 8 | . 1 . 1 . . . 3 1 1 1 1 1 1 1 1 1 8 1 . Garrison Relay 10 | . . . . . . . . 2 . 2 . 1 . 1 . 2 . 2 . Phase Generator 1 | . . . . . . . . . . . . . . 1 . . . . . Machines Sabotaged . | . . . . . . . . . . . . . . . . . . . . Garrisons Compromised . | . . . . . . . . . . . . . . . . . . . . Overloaded Fab Kills . | . . . . . . . . . . . . . . . . . . . . Fab Network Shutdowns . | . . . . . . . . . . . . . . . . . . . . Hacking | -11 -10 -10 -9 -9 -9 -8 -8 -8 -8 -8 -7 -7 -7 -7 -6 -6 -6 -6 -5 --------- Run | Scr Mat Min Mat Min Exi Min Mat Gar Mat Gar Fac Gar Fac Gar Fac Gar Fac Gar Fac Machines Accessed 53 | . 6 1 4 . . . 3 . 8 . 5 . 12 . 8 . 6 . . Terminals 26 | . 6 1 1 . . . 1 . 5 . 2 . 4 . 3 . 3 . . Fabricators 4 | . . . . . . . . . . . 1 . 2 . 1 . . . . Repair Stations 10 | . . . 2 . . . . . 1 . 1 . 3 . 2 . 1 . . Recycling Units 1 | . . . . . . . . . 1 . . . . . . . . . . Scanalyzers 6 | . . . 1 . . . 1 . . . . . 2 . 1 . 1 . . Garrison Access 6 | . . . . . . . 1 . 1 . 1 . 1 . 1 . 1 . . Total Hacks 141 | . 18 1 18 . . . 9 . 23 . 14 . 23 . 15 . 20 . . Successful 89 | . 10 . 15 . . . 8 . 10 . 10 . 10 . 9 . 17 . . Failed 52 | . 8 1 3 . . . 1 . 13 . 4 . 13 . 6 . 3 . . Catastrophic 9 | . 2 1 . . . . . . 2 . . . 2 . 2 . . . . Database Lockouts . | . . . . . . . . . . . . . . . . . . . . Manual 45 | . 9 1 2 . 1 . 3 . 11 . 4 . 7 . 3 . 4 . . Terminals 63 | . 18 1 1 . . . 2 . 15 . 5 . 8 . 5 . 8 . . Fabricators 8 | . . . . . . . . . . . 2 . 3 . 3 . . . . Repair Stations 33 | . . . 11 . . . . . 3 . 5 . 6 . 5 . 3 . . Recycling Units 3 | . . . . . . . . . 3 . . . . . . . . . . Scanalyzers 26 | . . . 6 . . . 6 . . . . . 5 . 1 . 8 . . Garrison Access 8 | . . . . . . . 1 . 2 . 2 . 1 . 1 . 1 . . Terminal Hacks 19 | . 8 . . . . . 1 . 3 . 2 . 2 . 1 . 2 . . Part Schematic 1 | . 1 . . . . . . . . . . . . . . . . . . Robot Analysis 2 | . 2 . . . . . . . . . . . . . . . . . . Prototype ID Bank 3 | . 2 . . . . . . . . . . . . . . . 1 . . Branch Access Points 3 | . 1 . . . . . 1 . 1 . . . . . . . . . . Terminal Index 1 | . . . . . . . . . . . 1 . . . . . . . . Unreport Threat 4 | . . . . . . . . . 2 . . . 1 . 1 . . . . Locate Traps 5 | . 2 . . . . . . . . . 1 . 1 . . . 1 . . Fabricator Hacks 6 | . . . . . . . . . . . 2 . 1 . 3 . . . . Network Status 1 | . . . . . . . . . . . 1 . . . . . . . . Load Schematic 3 | . . . . . . . . . . . 1 . 1 . 1 . . . . Build 2 | . . . . . . . . . . . . . . . 2 . . . . Repair Station Hacks 25 | . . . 9 . . . . . 2 . 4 . 3 . 4 . 3 . . Scan Component 14 | . . . 5 . . . . . 1 . 2 . 2 . 2 . 2 . . Repair 11 | . . . 4 . . . . . 1 . 2 . 1 . 2 . 1 . . Recycling Unit Hacks 1 | . . . . . . . . . 1 . . . . . . . . . . Retrieve Matter 1 | . . . . . . . . . 1 . . . . . . . . . . Scanalyzer 20 | . . . 5 . . . 5 . . . . . 2 . . . 8 . . Insert Component 11 | . . . 3 . . . 3 . . . . . 1 . . . 4 . . Analyze 9 | . . . 2 . . . 2 . . . . . 1 . . . 4 . . Garrison Access Hacks 8 | . . . . . . . 1 . 2 . 2 . 1 . 1 . 1 . . Unlock Access 6 | . . . . . . . 1 . 1 . 1 . 1 . 1 . 1 . . Coupler Status 2 | . . . . . . . . . 1 . 1 . . . . . . . . Unauthorized Hacks 10 | . 2 . 1 . . . 1 . 2 . . . 1 . . . 3 . . Terminals 7 | . 2 . . . . . . . 1 . . . 1 . . . 3 . . Botnet 6 | . 1 . . . . . . . 1 . . . 1 . . . 3 . . Disrupt 1 | . 1 . . . . . . . . . . . . . . . . . . Fabricators . | . . . . . . . . . . . . . . . . . . . . Repair Stations . | . . . . . . . . . . . . . . . . . . . . Recycling Units 1 | . . . . . . . . . 1 . . . . . . . . . . Tunnel 1 | . . . . . . . . . 1 . . . . . . . . . . Scanalyzers 2 | . . . 1 . . . 1 . . . . . . . . . . . . Extract 2 | . . . 1 . . . 1 . . . . . . . . . . . . Garrison Access . | . . . . . . . . . . . . . . . . . . . . Data Cores Recovered . | . . . . . . . . . . . . . . . . . . . . Used . | . . . . . . . . . . . . . . . . . . . . Hacking Detections 46 | . 6 1 4 . . . 3 . 7 . 5 . 10 . 6 . 4 . . Full Trace Events 1 | . . . . . . . . . 1 . . . . . . . . . . Feedback Events . | . . . . . . . . . . . . . . . . . . . . Feedback Blocked . | . . . . . . . . . . . . . . . . . . . . Robot Schematics Acquired . | . . . . . . . . . . . . . . . . . . . . Robots Built . | . . . . . . . . . . . . . . . . . . . . Matter . | . . . . . . . . . . . . . . . . . . . . Time . | . . . . . . . . . . . . . . . . . . . . Total Robot Build Rating . | . . . . . . . . . . . . . . . . . . . . Part Schematics Acquired 18 | . 1 . 3 . . . 9 . . . . . 1 . . . 4 . . Parts Built 4 | . . . . . . . . . . . . . . . 4 . . . . Matter 380 | . . . . . . . . . . . . . . . 380 . . . . Time 190 | . . . . . . . . . . . . . . . 190 . . . . Total Part Build Rating 20 | . . . . . . . . . . . . . . . 20 . . . . Parts Repaired 11 | . . . 4 . . . . . 1 . 2 . 1 . 2 . 1 . . Time 509 | . . . 184 . . . . . 50 . 110 . 35 . 105 . 25 . . Parts Recycled . | . . . . . . . . . . . . . . . . . . . . Recycled Matter . | . . . . . . . . . . . . . . . . . . . . Retrieved Matter . | . . . . . . . . . . . . . . . . . . . . Retrieved Components . | . . . . . . . . . . . . . . . . . . . . Parts Scanalyzed 9 | . . . 2 . . . 2 . . . . . 1 . . . 4 . . Part Schematics Acquired 9 | . . . 2 . . . 2 . . . . . 1 . . . 4 . . Parts Damaged 1 | . . . . . . . . . . . . . . . . . 1 . . Bothacking | -11 -10 -10 -9 -9 -9 -8 -8 -8 -8 -8 -7 -7 -7 -7 -6 -6 -6 -6 -5 ------------ Run | Scr Mat Min Mat Min Exi Min Mat Gar Mat Gar Fac Gar Fac Gar Fac Gar Fac Gar Fac Used RIF Installer 6 | . . . . . . . . 1 . 1 . 1 . 1 . 1 . 1 . Coupler Efficiency 1 | . . . . . . . . . . . . 1 . . . . . . . Patrol Navigation 1 | . . . . . . . . . . 1 . . . . . . . . . Watcher Feeds 1 | . . . . . . . . . . . . . . . . 1 . . . Structural Interface 1 | . . . . . . . . . . . . . . . . . . 1 . Autoassimilate 1 | . . . . . . . . . . . . . . 1 . . . . . Robots Hacked 48 | . . . . . . . . . . 4 4 5 1 4 4 12 8 6 . Non-combat 5 | . . . . . . . . . . . 3 . 1 . . . 1 . . Combat 43 | . . . . . . . . . . 4 1 5 . 4 4 12 7 6 . Autoassimilated 8 | . . . . . . . . . . . . . . . 2 1 3 2 . Robot Hacks Applied 44 | . . . . . . . . . . 4 5 5 2 4 2 12 6 4 . randomize_corridors 1 | . . . . . . . . . . . 1 . . . . . . . . block_reporting 2 | . . . . . . . . . . . . . 1 . . . 1 . . mark_security 1 | . . . . . . . . . . . 1 . . . . . . . . disable_weapons 6 | . . . . . . . . . . 2 2 1 . 1 . . . . . overwrite_iff 28 | . . . . . . . . . . 1 . 4 . 3 2 11 4 3 . streamctrl_high 1 | . . . . . . . . . . 1 . . . . . . . . . formatsys_low 3 | . . . . . . . . . . . 1 . 1 . . . 1 . . formatsys_high 2 | . . . . . . . . . . . . . . . . 1 . 1 . Relay Couplers Released 41 | . . . . . . . . 7 . 9 . 5 . 5 . 8 . 7 . Machine Destruction 41 | . . . . . . . . 7 . 9 . 5 . 5 . 8 . 7 . Attached 19 | . . . . . . . . . 1 3 . 2 1 1 1 6 1 3 . Robots Rewired . | . . . . . . . . . . . . . . . . . . . . Allies Hacked 1 | . . . . . . . . . . . . . 1 . . . . . . Hacks Repelled . | . . . . . . . . . . . . . . . . . . . . Allies | -11 -10 -10 -9 -9 -9 -8 -8 -8 -8 -8 -7 -7 -7 -7 -6 -6 -6 -6 -5 -------- Run | Scr Mat Min Mat Min Exi Min Mat Gar Mat Gar Fac Gar Fac Gar Fac Gar Fac Gar Fac Total Allies 43 | . . 2 . . . . . . . 2 1 4 1 3 4 12 8 6 . Largest Group 4 | . . 2 . . . . . . . 1 1 1 1 2 1 2 4 2 . Highest-Rated Group 84 | . . 38 . . . . . . . 16 10 32 26 32 32 58 84 58 . Highest-Rated Ally 47 | . . 31 . . . . . . . 16 10 32 26 16 32 32 29 47 . Total Orders 6 | . . . . . . . . . . . . . . . 1 2 2 1 . STAY 3 | . . . . . . . . . . . . . . . . 1 1 1 . ROAM 1 | . . . . . . . . . . . . . . . . 1 . . . FOLLOW 1 | . . . . . . . . . . . . . . . . . 1 . . EXPLORE 1 | . . . . . . . . . . . . . . . 1 . . . . Ally Attacks 122 | . . 10 . . . . . . . 6 . 10 . 6 8 40 22 20 . Total Damage 2361 | . . 164 . . . . . . . 130 . 166 . 90 196 923 263 429 . Kills 17 | . . 4 . . . . . . . 1 . 3 . 1 1 5 1 1 . Allies Corrupted 1 | . . . . . . . . . . . . . . . 1 . . . . Allies Melted . | . . . . . . . . . . . . . . . . . . . . Intel | -11 -10 -10 -9 -9 -9 -8 -8 -8 -8 -8 -7 -7 -7 -7 -6 -6 -6 -6 -5 ------- Run | Scr Mat Min Mat Min Exi Min Mat Gar Mat Gar Fac Gar Fac Gar Fac Gar Fac Gar Fac Robot Analysis Total 2 | . 2 . . . . . . . . . . . . . . . . . . Derelict Logs Recovered 1 | . . 1 . . . . . . . . . . . . . . . . . Drone Launches 2 | . . . . . . . . . . . . . . . 2 . . . . Drone Recoveries . | . . . . . . . . . . . . . . . . . . . . Exploration | -11 -10 -10 -9 -9 -9 -8 -8 -8 -8 -8 -7 -7 -7 -7 -6 -6 -6 -6 -5 ------------- Run | Scr Mat Min Mat Min Exi Min Mat Gar Mat Gar Fac Gar Fac Gar Fac Gar Fac Gar Fac Turns Passed 15292 | 130 585 621 1589 150 161 200 349 607 1054 553 849 1087 1297 1157 2607 664 644 771 217 Spaces Moved 13160 | 98 510 470 1008 208 219 303 392 598 1236 600 966 721 1502 710 1514 508 750 617 230 Core 10 | 6 . . . . 1 . . . 2 . . . . 1 . . . . . Treads 1 | . . . . . . . . . . . . . . . . . 1 . . Legs 1215 | . . . . . . . . . . . . . . 524 691 . . . . Wheels 1994 | 92 510 470 427 . . . . . . . . . . . 495 . . . . Hover 9940 | . . . 581 208 218 303 392 598 1234 600 966 721 1502 185 328 508 749 617 230 Flight . | . . . . . . . . . . . . . . . . . . . . Fastest Speed 50 | 50 80 100 66 66 66 66 52 52 52 52 52 52 52 105 62 62 62 53 76 Average Speed 75 | 84 80 100 80 66 68 66 56 52 54 54 59 52 76 145 103 62 62 69 79 Slowest Speed 650 | 100 90 100 220 66 500 66 116 52 550 61 131 52 105 650 220 62 180 150 150 Overloaded Moves 6 | . . . . . . . . . . . . . . . . . . 6 . Propulsion Burnouts . | . . . . . . . . . . . . . . . . . . . . Robots Hopped . | . . . . . . . . . . . . . . . . . . . . Cave-ins Triggered 1 | . . . . . . . 1 . . . . . . . . . . . . Exploration Rate (%) 53 | 6 82 81 70 47 62 57 39 76 60 63 28 72 49 80 42 48 20 75 8 Regions Visited 19 Branch Regions 4 Pre-discovered Areas 2 | . . 1 . . . . . . 1 . . . . . . . . . . Known Exits Taken 7 | . 1 . . . . . 1 . 1 . 1 . 1 . 1 . 1 . . Unknown Exits Taken 6 | 1 . 1 1 1 1 1 . . . . . . . . . . . . . Scrap Searched 4 | . . 1 . 2 . 1 . . . . . . . . . . . . . Spaces Dug 96 | . . . . . . . 6 . 2 . 3 . . . 10 . 1 74 . Terrain Destroyed 665 | . . . 156 . . . 43 42 75 24 6 9 8 52 20 1 75 153 1 Melee . | . . . . . . . . . . . . . . . . . . . . Projectile 78 | . . . 2 . . . 8 . 14 2 6 1 8 1 20 1 11 3 1 AOE 587 | . . . 154 . . . 35 42 61 22 . 8 . 51 . . 64 150 . Terrain Rammed . | . . . . . . . . . . . . . . . . . . . . Walls Destroyed . | . . . . . . . . . . . . . . . . . . . . Machines Disabled . | . . . . . . . . . . . . . . . . . . . . Actions | -11 -10 -10 -9 -9 -9 -8 -8 -8 -8 -8 -7 -7 -7 -7 -6 -6 -6 -6 -5 --------- Run | Scr Mat Min Mat Min Exi Min Mat Gar Mat Gar Fac Gar Fac Gar Fac Gar Fac Gar Fac Total 17599 | 123 620 582 1619 219 230 302 484 850 1532 789 1203 1355 1597 792 2476 796 881 897 252 Wait 3070 | 4 61 80 420 11 . . 31 97 209 134 193 450 40 14 852 218 83 171 2 Move 13135 | 97 509 469 1007 207 218 302 391 596 1235 598 965 719 1501 708 1513 506 749 615 230 Hop . | . . . . . . . . . . . . . . . . . . . . Pick Up 84 | 4 6 7 15 . 2 . 5 4 5 4 3 6 3 2 8 5 2 2 1 Fast Attach 112 | 8 3 2 14 . 4 . 11 . 11 2 9 . 5 3 24 2 8 2 4 Attach 41 | . . . 8 . . . 6 2 2 1 1 2 2 2 5 1 1 5 3 Detach 9 | . . . 1 . . . 2 . . . . . 1 1 2 . 1 1 . Swap 100 | . 3 . 30 1 . . 4 13 4 14 2 7 3 6 3 4 1 5 . Drop 121 | 1 6 4 24 . 6 . 10 1 11 5 7 3 6 1 28 1 6 . 1 Fire 597 | 9 32 20 100 . . . 24 29 55 21 17 49 36 30 41 44 30 51 9 Melee 11 | . . . . . . . . . . 4 6 . . . . . . 1 . Ram 2 | . . . . . . . . . . . . . . . . . . . 2 Kick . | . . . . . . . . . . . . . . . . . . . . Crush . | . . . . . . . . . . . . . . . . . . . . Escape Stasis 282 | . . . . . . . . 80 . 6 . 119 . 25 . 15 . 37 . Rewire . | . . . . . . . . . . . . . . . . . . . . Trap 35 | . . . . . . . . 28 . . . . . . . . . 7 . Miscellaneous . | . . . . . . . . . . . . . . . . . . . . Route ------- -11/Scrapyard -10/Materials (discovered 3 exits: *Mat x2 / *Min) -10/Mines (discovered 2 exits: *Mat x2) -9/Materials (discovered 2 exits: *Mat / [*Min]) -9/Mines (discovered 2 exits: *Mat / *Exi) -9/Exiles -8/Mines -8/Materials (discovered 2 exits: *Fac / Gar) -8/Garrison (discovered 3 exits: *Mat x3) -8/Materials (discovered 3 exits: *Fac x2 / Gar) -8/Garrison (discovered 2 exits: *Fac x2) -7/Factory (discovered 2 exits: *Low / Gar) -7/Garrison (discovered 3 exits: *Fac x3) -7/Factory (discovered 2 exits: *Fac / Gar) -7/Garrison (discovered 3 exits: *Fac x3) -6/Factory (discovered 4 exits: *Fac x2 / [Low] / Gar) -6/Garrison -6/Factory -6/Garrison (discovered 3 exits: *Fac x3) -5/Factory (discovered 1 exit: [Upp]) History --------- Turn | Location | Event 33 | -11/Scrapyard | Discovered new exit (range 15) 131 | -11/Scrapyard | Entered Materials 264 | -10/Materials | Discovered new exit (range 10) 285 | -10/Materials | Identified exit to Mines 303 | -10/Materials | Build established: Mutant 559 | -10/Materials | Discovered new exit (range 12) 716 | -10/Materials | Entered Mines 717 | -10/Mines | Assembled infested the area 722 | -10/Mines | Assisted by a Guerilla fighting off Assembled 832 | -10/Mines | Learned location of Zion (-6) 833 | -10/Mines | Discovered new exit (range 15) 1015 | -10/Mines | Core integrity fell below 50% 1100 | -10/Mines | Discovered new exit (range 5) 1337 | -10/Mines | Entered Materials 1337 | -9/Materials | Evolved 2 slots: Utility x2 1452 | -9/Materials | Lost 3 parts (1p1n1w) 1697 | -9/Materials | Build established: Scavenger-Skirmisher 1737 | -9/Materials | Discovered new exit (range 16) 2019 | -9/Materials | Repaired Cmb. Airjet 2377 | -9/Materials | Repaired Hvy. Ion Engine 2410 | -9/Materials | Repaired Imp. Terrain Scanner 2463 | -9/Materials | Repaired Imp. EM Shotgun 2537 | -9/Materials | First assault squad dispatched 2801 | -9/Materials | Build established: Mutant 2859 | -9/Materials | Discovered new exit (range 16) 2926 | -9/Materials | Entered Mines 2973 | -9/Mines | Discovered new exit (range 12) 3033 | -9/Mines | Received a Rocket Launcher from a helpful Derelict 3073 | -9/Mines | Deemed a non-threat by the Exiles lab entrance 3073 | -9/Mines | Discovered new exit (range 5) 3076 | -9/Mines | Entered Exiles 3092 | -9/Exiles | Met 8R-AWN 3104 | -9/Exiles | Met EX-HEX 3125 | -9/Exiles | Met EX-BIN 3132 | -9/Exiles | Aligned with FarCom system 3133 | -9/Exiles | Given EX-Vault access code 3148 | -9/Exiles | Opened EX-Vault 3152 | -9/Exiles | Found Prototype Device 3152 | -9/Exiles | Identified Skeleton Box 3159 | -9/Exiles | Found Prototype Leg 3159 | -9/Exiles | Identified Potential Leg 3184 | -9/Exiles | Warned to stay clear of 0b10 Research branches 3193 | -9/Exiles | Exiles lab attacked by MAIN.C 3230 | -9/Exiles | Discovered new exit (range 12) 3237 | -9/Exiles | Left Exiles lab with Skeleton Box 3237 | -9/Exiles | Entered Mines 3427 | -8/Mines | Discovered new exit (range 16) 3437 | -8/Mines | Entered Materials 3437 | -8/Materials | Evolved 2 slots: Propulsion x1, Utility x1 3546 | -8/Materials | Build established: Scout 3587 | -8/Materials | Crushed by falling debris 3652 | -8/Materials | Identified exit to Garrison 3661 | -8/Materials | Lost 5 parts (2n1u2w) 3765 | -8/Materials | Discovered new exit (range 9) 3786 | -8/Materials | Entered Garrison 3844 | -8/Garrison | Triggered checkpoint 3859 | -8/Garrison | Garrison Relay disabled 3885 | -8/Garrison | Build established: Mutant 4053 | -8/Garrison | Triggered checkpoint 4083 | -8/Garrison | Destroyed 7 combat bots 4101 | -8/Garrison | Discovered new exit (range 11) 4106 | -8/Garrison | Identified exit to Materials 4172 | -8/Garrison | Discovered exit to Materials (range 14) 4221 | -8/Garrison | Triggered checkpoint 4266 | -8/Garrison | Discovered exit to Materials (range 14) 4277 | -8/Garrison | Installed Relay Interface Framework 4342 | -8/Garrison | Triggered checkpoint 4367 | -8/Garrison | Garrison Relay disabled 4393 | -8/Garrison | Entered Materials 4672 | -8/Materials | Build established: Bothacker-Mutant 4859 | -8/Materials | Discovered new exit (range 16) 4892 | -8/Materials | Identified exit to Factory 4917 | -8/Materials | Repaired Cmb. Airjet 5137 | -8/Materials | Core integrity fell below 50% 5399 | -8/Materials | Discovered exit to Factory (range 15) 5447 | -8/Materials | Identified exit to Garrison 5447 | -8/Materials | Entered Garrison 5450 | -8/Garrison | Expanded RIF knowledge: Watcher Feeds 5476 | -8/Garrison | Build established: Bothacker-Scout 5482 | -8/Garrison | Triggered checkpoint 5496 | -8/Garrison | Garrison Relay disabled 5561 | -8/Garrison | Triggered checkpoint 5643 | -8/Garrison | Triggered checkpoint 5809 | -8/Garrison | Build established: Bothacker-Mutant 5828 | -8/Garrison | Discovered exit to Factory (range 10) 5902 | -8/Garrison | Discovered exit to Factory (range 10) 5922 | -8/Garrison | Triggered checkpoint 5969 | -8/Garrison | Garrison Relay disabled 6000 | -8/Garrison | Entered Factory 6000 | -7/Factory | Evolved 2 slots: Utility x1, Weapon x1 6140 | -7/Factory | Repaired Aerolev Unit? 6211 | -7/Factory | Repaired Cmb. Airjet 6250 | -7/Factory | Discovered new exit (range 7) 6252 | -7/Factory | Identified exit to Lower Caves 6848 | -7/Factory | Identified exit to Garrison 6849 | -7/Factory | Entered Garrison 6904 | -7/Garrison | Triggered checkpoint 6967 | -7/Garrison | Build established: Bothacker-Scout 6970 | -7/Garrison | Triggered checkpoint 6995 | -7/Garrison | Triggered checkpoint 7066 | -7/Garrison | Discovered new exit (range 15) 7122 | -7/Garrison | Triggered checkpoint 7632 | -7/Garrison | Discovered new exit (range 15) 7885 | -7/Garrison | Triggered checkpoint 7898 | -7/Garrison | Discovered new exit (range 17) 7930 | -7/Garrison | Identified exit to Factory 7933 | -7/Garrison | Expanded RIF knowledge: Coupler Efficiency 7936 | -7/Garrison | Entered Factory 8287 | -7/Factory | Repaired Cld. Particle Cannon 8403 | -7/Factory | Build established: Bothacker-Mutant 8777 | -7/Factory | P-60 Hacker assimilated allied Administrator 4a 8805 | -7/Factory | Discovered new exit (range 17) 8823 | -7/Factory | Identified exit to Factory 9232 | -7/Factory | Identified exit to Garrison 9233 | -7/Factory | Entered Garrison 9341 | -7/Garrison | Triggered checkpoint 9351 | -7/Garrison | Triggered checkpoint 9360 | -7/Garrison | Triggered checkpoint 9378 | -7/Garrison | Destroyed 11 combat bots 9441 | -7/Garrison | Discovered exit to Factory (range 15) 9716 | -7/Garrison | Phase Generator disabled 9731 | -7/Garrison | Discovered exit to Factory (range 9) 9899 | -7/Garrison | Discovered exit to Factory (range 9) 9923 | -7/Garrison | Expanded RIF knowledge: Autoassimilate 10173 | -7/Garrison | Triggered checkpoint 10390 | -7/Garrison | Entered Factory 10390 | -6/Factory | Evolved 2 slots: Utility x2 10693 | -6/Factory | Discovered new exit (range 20) 10765 | -6/Factory | Build established: Botlord-Skirmisher 11752 | -6/Factory | Build established: Bothacker-Skirmisher 11755 | -6/Factory | Discovered new exit (range 18) 11791 | -6/Factory | Identified exit to Factory 12306 | -6/Factory | Discovered exit to Factory (range 15) 12339 | -6/Factory | Repaired Magnetic Acceleration Cannon 12530 | -6/Factory | Fabricated Cmb. Airjet (x2) 12681 | -6/Factory | Fabricated Cmb. Airjet (x2) 12866 | -6/Factory | Repaired Cld. Plasma Cannon 12887 | -6/Factory | Build established: Bothacker-Scout 12994 | -6/Factory | Identified exit to Garrison 12997 | -6/Factory | Entered Garrison 13001 | -6/Garrison | Expanded RIF knowledge: Patrol Navigation 13167 | -6/Garrison | Triggered checkpoint 13245 | -6/Garrison | Triggered checkpoint 13251 | -6/Garrison | Triggered checkpoint 13318 | -6/Garrison | Triggered checkpoint 13364 | -6/Garrison | Garrison Relay disabled 13443 | -6/Garrison | Spotted B-75 Beast 13467 | -6/Garrison | Triggered checkpoint 13495 | -6/Garrison | Allies destroyed B-75 Beast 13537 | -6/Garrison | Discovered new exit (range 13) 13566 | -6/Garrison | Triggered checkpoint 13593 | -6/Garrison | Garrison Relay disabled 13632 | -6/Garrison | Identified exit to Factory 13659 | -6/Garrison | Build established: Botlord-Mutant 13661 | -6/Garrison | Entered Factory 13661 | -6/Factory | Accompanied by 1 ally 13781 | -6/Factory | Repaired Magnetic Acceleration Cannon 14245 | -6/Factory | P-60 Hacker assimilated allied Soldier 5e 14250 | -6/Factory | Garrison activated, responded to threat 14286 | -6/Factory | Identified exit to Garrison 14305 | -6/Factory | Entered Garrison 14351 | -6/Garrison | Triggered checkpoint 14374 | -6/Garrison | Garrison Relay disabled 14409 | -6/Garrison | Spotted B-75 Beast 14454 | -6/Garrison | Triggered checkpoint 14462 | -6/Garrison | Triggered checkpoint 14544 | -6/Garrison | Triggered checkpoint 14549 | -6/Garrison | Triggered checkpoint 14678 | -6/Garrison | Lost 5 parts (1p1n3w) 14707 | -6/Garrison | Discovered exit to Factory (range 12) 14739 | -6/Garrison | Garrison Relay disabled 14758 | -6/Garrison | Triggered checkpoint 14908 | -6/Garrison | Discovered exit to Factory (range 13) 14922 | -6/Garrison | Lost 3 parts (1n2w) 15060 | -6/Garrison | Discovered exit to Factory (range 12) 15072 | -6/Garrison | Expanded RIF knowledge: Structural Interface 15076 | -6/Garrison | Entered Factory 15076 | -5/Factory | Evolved 2 slots: Utility x2 15228 | -5/Factory | Discovered new exit (range 17) 15293 | -5/Factory | Self-destructed Last Messages --------------- 15228_ EXIT=FOUND 15248_ C-30 ARC bursts open, deploying its payload. 15248_ S-27 Virus unfolds itself. 15253_ S-27 Virus knocked back. 15257_ Slammed into S-27 Virus. 15258_ Cmb. Airjet destroyed. 15260_ Acquired 23 matter. 15269_ Penetrated by Slug. 15270_ Slammed into S-27 Virus. 15271_ System Guard destroyed. 15271_ S-27 Virus knocked back. 15272_ Slug penetrates S-27 Virus. 15273_ S-27 Virus destroyed. 15275_ Penetrated by Slug. 15279_ S-27 Virus destroyed. 15283_ Acquired 19 matter. 15285_ Penetrated by Slug. 15288_ Magnetic Acceleration Cannon destroyed. 15289_ M-28 Smith fits Backup Power III on S-27 Virus. 15292_ Acquired Linear Gravjet. Map ----- +----------------------------------------------------+ | ??### # # ######?# ?? ???? ?? ?????? | | ??### #####+##### #??#?### ?? ??###?#+?????? | | #??## # ####?###? ? #??? ??????? | | #???# #= ##??#### ? ? +? ????????? | | ??#?# ####+########## # ???? ???? | | #???# ?# ?????????? | | ?#?## #? ?? ?????? | | ##??# ####### ?# ???????? | | ##### # #? ? ??? ? ??? | | #! ## #?? ? ??? | | ######+### # ## ?? # ??? ????? | | #?## !# #! ##? # ? ? ??? | | #?##! ##+#### # ## # ??????? | | ??## "" # # ##+#### +? ? ???? | | #??# F" # """ # %= # ? ????? | | #### " # """ ##### #### #?? ?????? | | ####* "" + """ ##### #### ? # ? ?? ??? | | ##?# # ##### Ym#### ###?##?#???? | | #################### ##### ###? "%###???????? | | ############## ### #####s### " ? ???? | | #?#?####??## ####= # ? ???? | | ############ ######## # ? ?????? | | ############# ######### ; ????? | | ############# ######### # ?? ????? | | # ####+######### + ???????? | | # #### ;@ # ????? | | # #### # # ##?##?????? | | # #### # ### ###Y###?????? | | + """" #### # ### # ??????? | | # """" + + ####;### # "?? ??????? | | # """" #### ##?##### + """ ??????? | | # """" #?## ###?#### # "S????????? | | # #### #####?## #???"???????? | | #################+############ # "????????? | | #? ????????? | | ^ # ??????????? | | ^ ##??#???????? | | ^ #????? ?????? | | #??????#????? | | #+##########+############ #??#?? #????? | | ?? ? #? ? ""?? ??# ###### #????? | | ?? ##? #?"?R" # #????? | | ? ? ?# ??#?"??"? + = #????? | | ? ?## ???" ? ? ? # +????? | | ?? ? #? ?"?" ? "?"??"" # """ """ """ #????? | | ?? ?? ?" " # ""? ?""?# """ """ """ +????? | | ? ## ???" # "?"???" # """ """ """ #####????? | | ?? ? #?? "?" # ? ? # "" "" "" ####?????? | | ??????????? ? #?####??#?# "" "" "" """#?????? | | ??????#?? ? "????? ? ??+ """#?????? | +----------------------------------------------------+ Best States ------------- Heat Dissipation 40 Energy Generation 19 Energy Capacity 500 Matter Stores 300 Matter Capacity 300 Sight Range 16 Terrain Scan Range 20 Terrain Scan Density 210 ECM Strength 2 Corruption Prevention 12 Armor Coverage 150 Propulsion Shielding 66 Utility Shielding 66 Evasion (%) 54 Relay Coupler Types 144 Relay Coupler Value 5 Item Schematics ----------------- Datajack | -10/Materials | Hacked Cmb. Airjet | -9/Materials | Scanalyzed Mni. Grenade Launcher | -9/Materials | Scanalyzed EM Pulse Gun | -9/Materials | Extracted Imp. Propulsion Shielding | -8/Materials | Scanalyzed Rocket Launcher | -8/Materials | Scanalyzed Cryofiber Web | -8/Materials | Extracted Hvy. Ion Engine | -8/Materials | Extracted Lgt. Cannon | -8/Materials | Extracted Imp. Signal Interpreter | -8/Materials | Extracted Cesium-ion Thruster | -8/Materials | Extracted Thermal Converter | -8/Materials | Extracted Imp. VTOL Module | -8/Materials | Extracted Remote Datajack | -7/Factory | Scanalyzed Cld. Plasma Cannon | -6/Factory | Scanalyzed Lrn. Missile Launcher | -6/Factory | Scanalyzed Magnetic Acceleration Cannon | -6/Factory | Scanalyzed Adv. Terrain Scanner | -6/Factory | Scanalyzed Robot Schematics ------------------ None Fabricated ------------ Cmb. Airjet | x2 | -6/Factory Cmb. Airjet | x2 | -6/Factory Alien Tech Used ----------------- None Achievements -------------- Maybe Next Time I'll Detach My Launcher Challenges ------------ None Game ------ Seed ExperimentalTractorGuard Manual? 0 Play Time 02:59:04 Cumulative 53.7 hours Start 2021.06.08 @ 16:24:35 End 2021.06.11 @ 18:17:24 Sessions 11 Manual Loads 0 Difficulty Rogue Special Mode None Game No. 114 Rogue 114 Adventurer 0 Explorer 0 Win Type - Total 0 Types 0/0/0/0/0/0/0/0/0 Lore% 41 Gallery% 42 Achievement% 34 Wizard Run 0 Options --------- ASCII 0 Keyboard 0 Movement Numpad Keybinds 0 Fullscreen 2 Font 24/Smallcaps Map View 76x50 Tactical HUD 1 Map Filters NONE Filters NONE Steam 1 RUN: 93f68ad8-45ad-4a30-8f11-cff8f0da3071